{"text_format":"1","workbook":"xlsx","n_sheets":4,"sheets":["MainPriceSheet","OrderSheet","Insulation","Estimate"],"not_rendered":{"charts":0,"images":6,"macros":1,"external_links":0,"defined_names":0,"comments":0,"pivot_tables":0},"unopened":[],"bounds":{"document_bytes":16777216,"sheet_cells":100000,"rows_first":2000,"rows_last":500,"rows_between":2000,"halvings":0,"cell_chars":16384,"cell_head_chars":4096},"cells_cut":0,"cells_raw":0,"read":"whole","date_system":"1900"}

{"sheet":"MainPriceSheet","index":0,"n_rows":133,"n_cols":22,"rows_kept":133,"cut":false,"hidden":false,"merged":[]}
[]
[null,null,null,null,null,"Price Sheet for Pacific Buildings Inc"]
["Multiplier","1.10"]
["14 Gauge"]
["Size","Price +",null,"Size","Price",null,null,"Size","Price",null,"Size","Price",null,null,"Size","Price"]
["12x20",{"$f":"C6*B3","v":2194.5},1995,"12x25",{"$f":"F6*B3","v":2706},2460,null,"12x30",{"$f":"J6*B3","v":3250.5000000000005},2955,"12x35",{"$f":"M6*B3","v":3795.0000000000005},3450,null,"12x40",{"$f":"Q6*B3","v":4339.5},3945]
["18x20",{"$f":"C7*B3","v":2524.5},2295,"18x25",{"$f":"F7*B3","v":3250.5000000000005},2955,null,"18x30",{"$f":"J7*B3","v":3795.0000000000005},3450,"18x35",{"$f":"M7*B3","v":4521},4110,null,"18x40",{"$f":"Q7*B3","v":5065.5},4605]
["20x20",{"$f":"C8*B3","v":2887.5000000000005},2625,"20x25",{"$f":"F8*B3","v":3591.5000000000005},3265,null,"20x30",{"$f":"J8*B3","v":4339.5},3945,"20x35",{"$f":"M8*B3","v":5065.5},4605,null,"20x40",{"$f":"Q8*B3","v":5791.5000000000009},5265]
["22x20",{"$f":"C9*B3","v":3432.0000000000005},3120,"22x25",{"$f":"F9*B3","v":4339.5},3945,null,"22x30",{"$f":"J9*B3","v":5247},4770,"22x35",{"$f":"M9*B3","v":6154.5000000000009},5595,null,"22x40",{"$f":"Q9*B3","v":7062.0000000000009},6420]
["24x20",{"$f":"C10*B3","v":4158},3780,"24x25",{"$f":"F10*B3","v":5247},4770,null,"24x30",{"$f":"J10*B3","v":6336.0000000000009},5760,"24x35",{"$f":"M10*B3","v":7425.0000000000009},6750,null,"24x40",{"$f":"Q10*B3","v":8580},7800]
["26x20",{"$f":"C11*B3","v":4884},4440,"26x25",{"$f":"F11*B3","v":6154.5000000000009},5595,null,"26x30",{"$f":"J11*B3","v":7425.0000000000009},6750,"26x35",{"$f":"M11*B3","v":8695.5},7905,null,"26x40",{"$f":"Q11*B3","v":9966},9060]
["28x20",{"$f":"C12*B3","v":5610},5100,"28x25",{"$f":"F12*B3","v":7062.0000000000009},6420,null,"28x30",{"$f":"J12*B3","v":8514},7740,"28x35",{"$f":"M12*B3","v":9966},9060,null,"28x40",{"$f":"Q12*B3","v":11418.000000000002},10380]
["30x20",{"$f":"C13*B3","v":6336.0000000000009},5760,"30x25",{"$f":"F13*B3","v":7969.5000000000009},7245,null,"30x30",{"$f":"J13*B3","v":9603},8730,"30x35",{"$f":"M13*B3","v":11236.5},10215,null,"30x40",{"$f":"Q13*B3","v":12870.000000000002},11700]
[]
[]
["12 Gauge",null,"1270.5 per 5ft"]
["Size","Price",null,"Size","Price",null,null,"Size","Price",null,null,"Size","Price",null,null,"Size","Price"]
["12x20",{"$f":"C18*B3","v":2524.5},2295,"12x25",{"$f":"F18*B3","v":3250.5000000000005},2955,null,"12x30",{"$f":"J18*B3","v":3795.0000000000005},3450,null,"12x35",{"$f":"N18*B3","v":4521},4110,null,"12x40",{"$f":"R18*B3","v":5065.5},4605]
["18x20",{"$f":"C19*B3","v":3069.0000000000005},2790,"18x25",{"$f":"F19*B3","v":3976.5000000000005},3615,null,"18x30",{"$f":"J19*B3","v":4702.5},4275,null,"18x35",{"$f":"N19*B3","v":5428.5},4935,null,"18x40",{"$f":"R19*B3","v":6154.5000000000009},5595]
["20x20",{"$f":"C20*B3","v":3613.5000000000005},3285,"20x25",{"$f":"F20*B3","v":4521},4110,null,"20x30",{"$f":"J20*B3","v":5428.5},4935,null,"20x35",{"$f":"N20*B3","v":6336.0000000000009},5760,null,"20x40",{"$f":"R20*B3","v":7243.5000000000009},6585]
["22x20",{"$f":"C21*B3","v":4339.5},3945,"22x25",{"$f":"F21*B3","v":5428.5},4935,null,"22x30",{"$f":"J21*B3","v":6517.5000000000009},5925,null,"22x35",{"$f":"N21*B3","v":7606.5000000000009},6915,null,"22x40",{"$f":"R21*B3","v":8695.5},7905]
["24x20",{"$f":"C22*B3","v":5065.5},4605,"24x25",{"$f":"F22*B3","v":6336.0000000000009},5760,null,"24x30",{"$f":"J22*B3","v":7606.5000000000009},6915,null,"24x35",{"$f":"N22*B3","v":8877},8070,null,"24x40",{"$f":"R22*B3","v":10147.5},9225]
["26x20",{"$f":"C23*B3","v":5791.5000000000009},5265,"26x25",{"$f":"F23*B3","v":7243.5000000000009},6585,null,"26x30",{"$f":"J23*B3","v":8695.5},7905,null,"26x35",{"$f":"N23*B3","v":10147.5},9225,null,"26x40",{"$f":"R23*B3","v":11599.500000000002},10545]
["28x20",{"$f":"C24*B3","v":6517.5000000000009},5925,"28x25",{"$f":"F24*B3","v":8151.0000000000009},7410,null,"28x30",{"$f":"J24*B3","v":9784.5},8895,null,"28x35",{"$f":"N24*B3","v":11418.000000000002},10380,null,"28x40",{"$f":"R24*B3","v":13051.500000000002},11865]
["30x20",{"$f":"C25*B3","v":7243.5000000000009},6585,"30x25",{"$f":"F25*B3","v":9058.5},8235,null,"30x30",{"$f":"J25*B3","v":10873.5},9885,null,"30x35",{"$f":"N25*B3","v":12688.500000000002},11535,null,"30x40",{"$f":"R25*B3","v":14503.500000000002},13185]
[]
["A Frame Options",null,null,null,null,null,"20' long",null,null,null,null,"25' long",null,null,"30' Long",null,null,"35' Long",null,null,"40' Long"]
["Boxed Eave Style (Horixontal Roof)",null,null,null,null,null,{"$f":"I28*B3","v":137.5},null,125,null,null,{"$f":"M28*B3","v":165},150,null,{"$f":"P28*B3","v":192.50000000000003},175,null,{"$f":"S28*B3","v":220.00000000000003},200,null,{"$f":"V28*B3","v":247.50000000000003},225]
["Vertical Style",null,null,null,null,null,{"$f":"I29*B3","v":660},null,600,null,null,{"$f":"M29*B3","v":819.50000000000011},745,null,{"$f":"P29*B3","v":984.50000000000011},895,null,{"$f":"S29*B3","v":1149.5},1045,null,{"$f":"V29*B3","v":1314.5},1195]
[]
[null,null,"Price",null,"Price",null,"Price",null,"Price",null,"Price"]
["Leg Hieght",null,"20' long",null,"25' long",null,"30' long",null,"35' long",null,"40' long"]
["6 feet",null,"STD",null,"STD",null,"STD",null,"STD",null,"STD"]
["7  feet",160,{"$f":"B34*B3","v":176},190,{"$f":"D34*B3","v":209.00000000000003},215,{"$f":"F34*B3","v":236.50000000000003},245,{"$f":"H34*B3","v":269.5},270,{"$f":"J34*B3","v":297}]
["8  feet",245,{"$f":"B35*B3","v":269.5},290,{"$f":"D35*B3","v":319},335,{"$f":"F35*B3","v":368.50000000000006},385,{"$f":"H35*B3","v":423.50000000000006},435,{"$f":"J35*B3","v":478.50000000000006}]
["9  feet",325,{"$f":"B36*B3","v":357.50000000000006},390,{"$f":"D36*B3","v":429.00000000000006},465,{"$f":"F36*B3","v":511.50000000000006},535,{"$f":"H36*B3","v":588.5},600,{"$f":"J36*B3","v":660}]
["10  feet",410,{"$f":"B37*B3","v":451.00000000000006},495,{"$f":"D37*B3","v":544.5},590,{"$f":"F37*B3","v":649},675,{"$f":"H37*B3","v":742.50000000000011},765,{"$f":"J37*B3","v":841.50000000000011}]
["11  feet",490,{"$f":"B38*B3","v":539},600,{"$f":"D38*B3","v":660},710,{"$f":"F38*B3","v":781.00000000000011},820,{"$f":"H38*B3","v":902.00000000000011},930,{"$f":"J38*B3","v":1023.0000000000001}]
["12  feet",575,{"$f":"B39*B3","v":632.5},700,{"$f":"D39*B3","v":770.00000000000011},830,{"$f":"F39*B3","v":913.00000000000011},965,{"$f":"H39*B3","v":1061.5},1095,{"$f":"J39*B3","v":1204.5}]
["13  feet",660,{"$f":"B40*B3","v":726.00000000000011},800,{"$f":"D40*B3","v":880.00000000000011},950,{"$f":"F40*B3","v":1045},1110,{"$f":"H40*B3","v":1221},1260,{"$f":"J40*B3","v":1386}]
["14  feet",740,{"$f":"B41*B3","v":814.00000000000011},905,{"$f":"D41*B3","v":995.50000000000011},1070,{"$f":"F41*B3","v":1177},1255,{"$f":"H41*B3","v":1380.5},1425,{"$f":"J41*B3","v":1567.5000000000002}]
["15  feet",825,{"$f":"B42*B3","v":907.50000000000011},1010,{"$f":"D42*B3","v":1111},1195,{"$f":"F42*B3","v":1314.5},1395,{"$f":"H42*B3","v":1534.5000000000002},1590,{"$f":"J42*B3","v":1749.0000000000002}]
["16  feet",905,{"$f":"B43*B3","v":995.50000000000011},1110,{"$f":"D43*B3","v":1221},1325,{"$f":"F43*B3","v":1457.5000000000002},1545,{"$f":"H43*B3","v":1699.5000000000002},1755,{"$f":"J43*B3","v":1930.5000000000002}]
[]
[]
[]
["Close Both Sides",null,"20' long","Price","25' long","Price","30' long","Price","35' long","Price","40' long","Price"]
[]
["Add for Vertical Sides",null,450,{"$f":"C49*B3","v":495.00000000000006},500,{"$f":"E49*B3","v":550},550,{"$f":"G49*B3","v":605},620,{"$f":"I49*B3","v":682},680,{"$f":"K49*B3","v":748.00000000000011}]
["6 feet",null,565,{"$f":"C50*B3","v":621.5},650,{"$f":"E50*B3","v":715.00000000000011},745,{"$f":"G50*B3","v":819.50000000000011},850,{"$f":"I50*B3","v":935.00000000000011},965,{"$f":"K50*B3","v":1061.5}]
["7  feet",null,625,{"$f":"C51*B3","v":687.5},730,{"$f":"E51*B3","v":803.00000000000011},845,{"$f":"G51*B3","v":929.50000000000011},970,{"$f":"I51*B3","v":1067},1105,{"$f":"K51*B3","v":1215.5}]
["8  feet",null,690,{"$f":"C52*B3","v":759.00000000000011},815,{"$f":"E52*B3","v":896.50000000000011},950,{"$f":"G52*B3","v":1045},1095,{"$f":"I52*B3","v":1204.5},1250,{"$f":"K52*B3","v":1375}]
["9  feet",null,755,{"$f":"C53*B3","v":830.50000000000011},900,{"$f":"E53*B3","v":990.00000000000011},1055,{"$f":"G53*B3","v":1160.5},1220,{"$f":"I53*B3","v":1342},1395,{"$f":"K53*B3","v":1534.5000000000002}]
["10  feet",null,825,{"$f":"C54*B3","v":907.50000000000011},990,{"$f":"E54*B3","v":1089},1165,{"$f":"G54*B3","v":1281.5},1350,{"$f":"I54*B3","v":1485.0000000000002},1545,{"$f":"K54*B3","v":1699.5000000000002}]
["11  feet",null,895,{"$f":"C55*B3","v":984.50000000000011},1080,{"$f":"E55*B3","v":1188},1275,{"$f":"G55*B3","v":1402.5},1480,{"$f":"I55*B3","v":1628.0000000000002},1695,{"$f":"K55*B3","v":1864.5000000000002}]
["12  feet",null,970,{"$f":"C56*B3","v":1067},1175,{"$f":"E56*B3","v":1292.5},1390,{"$f":"G56*B3","v":1529.0000000000002},1615,{"$f":"I56*B3","v":1776.5000000000002},1850,{"$f":"K56*B3","v":2035.0000000000002}]
["13  feet",null,1115,{"$f":"C57*B3","v":1226.5},1340,{"$f":"E57*B3","v":1474.0000000000002},1575,{"$f":"G57*B3","v":1732.5000000000002},1820,{"$f":"I57*B3","v":2002.0000000000002},2075,{"$f":"K57*B3","v":2282.5}]
["14  feet",null,1195,{"$f":"C58*B3","v":1314.5},1440,{"$f":"E58*B3","v":1584.0000000000002},1695,{"$f":"G58*B3","v":1864.5000000000002},1960,{"$f":"I58*B3","v":2156},2235,{"$f":"K58*B3","v":2458.5}]
["15  feet",null,1275,{"$f":"C59*B3","v":1402.5},1540,{"$f":"E59*B3","v":1694.0000000000002},1815,{"$f":"G59*B3","v":1996.5000000000002},2100,{"$f":"I59*B3","v":2310},2395,{"$f":"K59*B3","v":2634.5}]
["16  feet",null,1355,{"$f":"C60*B3","v":1490.5000000000002},1640,{"$f":"E60*B3","v":1804.0000000000002},1935,{"$f":"G60*B3","v":2128.5},2240,{"$f":"I60*B3","v":2464},2555,{"$f":"K60*B3","v":2810.5}]
[]
[]
[]
["Cloase End / Price per End. ",null,12,"Price",18,"Price",20,"Price",22,"Price",24,"Price",26,"Price",28,"Price",30,"Price"]
[]
["Add for Vertical End",null,500,{"$f":"B3*C66","v":550},520,{"$f":"B3*E66","v":572},580,{"$f":"B3*G66","v":638},650,{"$f":"B3*I66","v":715.00000000000011},700,{"$f":"B3*K66","v":770.00000000000011},850,{"$f":"B3*M66","v":935.00000000000011},875,{"$f":"N3*O66","v":0},950,{"$f":"B3*Q66","v":1045}]
["6 feet",null,565,{"$f":"B3*C67","v":621.5},695,{"$f":"B3*E67","v":764.50000000000011},750,{"$f":"B3*G67","v":825.00000000000011},895,{"$f":"B3*I67","v":984.50000000000011},930,{"$f":"B3*K67","v":1023.0000000000001},1180,{"$f":"B3*M67","v":1298},1295,{"$f":"B3*O67","v":1424.5000000000002},1410,{"$f":"B3*Q67","v":1551.0000000000002}]
["7  feet",null,650,{"$f":"B3*C68","v":715.00000000000011},755,{"$f":"B3*E68","v":830.50000000000011},815,{"$f":"B3*G68","v":896.50000000000011},965,{"$f":"B3*I68","v":1061.5},1010,{"$f":"B3*K68","v":1111},1265,{"$f":"B3*M68","v":1391.5},1385,{"$f":"B3*O68","v":1523.5000000000002},1505,{"$f":"B3*Q68","v":1655.5000000000002}]
["8  feet",null,680,{"$f":"B3*C69","v":748.00000000000011},825,{"$f":"B3*E69","v":907.50000000000011},890,{"$f":"B3*G69","v":979.00000000000011},1050,{"$f":"B3*I69","v":1155},1100,{"$f":"B3*K69","v":1210},1350,{"$f":"B3*M69","v":1485.0000000000002},1475,{"$f":"B3*O69","v":1622.5000000000002},1600,{"$f":"B3*Q69","v":1760.0000000000002}]
["9  feet",null,710,{"$f":"B3*C70","v":781.00000000000011},905,{"$f":"B3*E70","v":995.50000000000011},975,{"$f":"B3*G70","v":1072.5},1150,{"$f":"B3*I70","v":1265},1200,{"$f":"B3*K70","v":1320},1435,{"$f":"B3*M70","v":1578.5000000000002},1565,{"$f":"B3*O70","v":1721.5000000000002},1695,{"$f":"B3*Q70","v":1864.5000000000002}]
["10  feet",null,800,{"$f":"B3*C71","v":880.00000000000011},995,{"$f":"B3*E71","v":1094.5},1070,{"$f":"B3*G71","v":1177},1265,{"$f":"B3*I71","v":1391.5},1310,{"$f":"B3*K71","v":1441.0000000000002},1520,{"$f":"B3*M71","v":1672.0000000000002},1655,{"$f":"B3*O71","v":1820.5000000000002},1790,{"$f":"B3*Q71","v":1969.0000000000002}]
["11  feet",null,860,{"$f":"B3*C72","v":946.00000000000011},1095,{"$f":"B3*E72","v":1204.5},1175,{"$f":"B3*G72","v":1292.5},1395,{"$f":"B3*I72","v":1534.5000000000002},1430,{"$f":"B3*K72","v":1573.0000000000002},1605,{"$f":"B3*M72","v":1765.5000000000002},1745,{"$f":"B3*O72","v":1919.5000000000002},1885,{"$f":"B3*Q72","v":2073.5}]
["12  feet",null,920,{"$f":"B3*C73","v":1012.0000000000001},1205,{"$f":"B3*E73","v":1325.5},1290,{"$f":"B3*G73","v":1419.0000000000002},1540,{"$f":"B3*I73","v":1694.0000000000002},1560,{"$f":"B3*K73","v":1716.0000000000002},1690,{"$f":"B3*M73","v":1859.0000000000002},1835,{"$f":"B3*O73","v":2018.5000000000002},1980,{"$f":"B3*Q73","v":2178}]
["13  feet",null,1110,{"$f":"B3*C74","v":1221},1395,{"$f":"B3*E74","v":1534.5000000000002},1485,{"$f":"B3*G74","v":1633.5000000000002},1655,{"$f":"B3*I74","v":1820.5000000000002},1785,{"$f":"B3*K74","v":1963.5000000000002},1820,{"$f":"B3*M74","v":2002.0000000000002},1995,{"$f":"B3*O74","v":2194.5},2145,{"$f":"B3*Q74","v":2359.5}]
["14  feet",null,1240,{"$f":"B3*C75","v":1364},1525,{"$f":"B3*E75","v":1677.5000000000002},1640,{"$f":"B3*G75","v":1804.0000000000002},1805,{"$f":"B3*I75","v":1985.5000000000002},1870,{"$f":"B3*K75","v":2057},1985,{"$f":"B3*M75","v":2183.5},2100,{"$f":"B3*O75","v":2310},2240,{"$f":"B3*Q75","v":2464}]
["15  feet",null,1370,{"$f":"B3*C76","v":1507.0000000000002},1655,{"$f":"B3*E76","v":1820.5000000000002},1795,{"$f":"B3*G76","v":1974.5000000000002},1955,{"$f":"B3*I76","v":2150.5},1955,{"$f":"B3*K76","v":2150.5},2150,{"$f":"B3*M76","v":2365},2205,{"$f":"B3*O76","v":2425.5},2335,{"$f":"B3*Q76","v":2568.5}]
["16  feet",null,1500,{"$f":"B3*C77","v":1650.0000000000002},1785,{"$f":"B3*E77","v":1963.5000000000002},1950,{"$f":"B3*G77","v":2145},2105,{"$f":"B3*I77","v":2315.5},2040,{"$f":"B3*K77","v":2244},2315,{"$f":"B3*M77","v":2546.5},2310,{"$f":"B3*O77","v":2541},2430,{"$f":"B3*Q77","v":2673}]
[]
[]
["Gable Ends",null,null,"Price",null,null,"Extra Trusses",null,null,"Price",null,"Roll up Doors",null,"Price",null,null,"Heavy duty roll up doors",null,"Price"]
["12'-20' wide",null,250,{"$f":"B3*C81","v":275},"per end",null,"12'-24' Wide",null,250,{"$f":"B3*I81","v":275},null,"6x7",495,{"$f":"M81*B3","v":544.5},null,null,"10x12",2210,{"$f":"R81*B3","v":2431}]
["22'-24' wide",null,275,{"$f":"B3*C82","v":302.5},"per end",null,"26'-30' Wide",null,365,{"$f":"B3*I82","v":401.50000000000006},null,"8x7",550,{"$f":"M82*B3","v":605},null,null,"10x14",2650,{"$f":"R82*B3","v":2915.0000000000005}]
["26'-30' wide",null,375,{"$f":"B3*C83","v":412.50000000000006},"per end",null,null,null,null,null,null,"9x7",640,{"$f":"M83*B3","v":704},null,null,"11x14",2745,{"$f":"R83*B3","v":3019.5000000000005}]
["ADD $100 for Vertical Gable ",null,null,100,null,null,"Add 20 for each foot of extra hieght",null,null,null,null,"10x8",720,{"$f":"M84*B3","v":792.00000000000011},null,null,"11x16",3620,{"$f":"R84*B3","v":3982.0000000000005}]
[null,null,null,null,null,null,null,null,null,null,null,"10x10",815,{"$f":"M85*B3","v":896.50000000000011},null,null,"12x12",2420,{"$f":"R85*B3","v":2662}]
[null,null,null,null,null,null,null,null,null,null,null,"Leg hieght must be one foot taller than Door hieght. ",null,null,null,null,"12x14",3078,{"$f":"R86*B3","v":3385.8}]
[null,null,null,"Price",null,null,null,null,null,null,"Price",null,null,null,"Price",null,"14x12",3158,{"$f":"R87*B3","v":3473.8}]
["Walk in Door",null,325,{"$f":"C88*B3","v":357.50000000000006},null,"Concrete Anchors ",null,null,15,null,{"$f":"I88*B3","v":16.5},null,"Individual Sheet Metal *Not Installed*",null,null,null,"14x14",3790,{"$f":"R88*B3","v":4169}]
["Windows 30x30",null,255,{"$f":"C89*B3","v":280.5},null,"Mobile Home Anchors",null,null,40,null,{"$f":"I89*B3","v":44},null,"21'",130,{"$f":"N89*B3","v":143},null,"14x15",3790,{"$f":"R89*B3","v":4169}]
[null,null,null,null,null,"Asphalt Anchors",null,null,40,null,{"$f":"I90*B3","v":44},null,"26'",165,{"$f":"N90*B3","v":181.50000000000003},null,"16x10",3355,{"$f":"R90*B3","v":3690.5000000000005}]
[null,null,null,null,null,"Welded L Brackets ",null,null,30,null,{"$f":"I91*B3","v":33},null,"31'",190,{"$f":"N91*B3","v":209.00000000000003},null,"16x12",4050,{"$f":"R91*B3","v":4455}]
[null,null,null,null,null,null,null,null,null,null,null,null,null,null,null,null,"16x14",4266,{"$f":"R92*B3","v":4692.6000000000004}]
[null,null,null,"Price",null,null,null,null,null,null,null,null,null,null,null,null,"16x16",4580,{"$f":"R93*B3","v":5038}]
["Breakouts",null,"side 250",275,null,null,null,null,null,null,null,null,null,null,null,null,"18x10",3655,{"$f":"R94*B3","v":4020.5000000000005}]
[null,null,"front 100",110,null,null,null,null,null,null,null,null,null,null,null,null,"20x12",4562,{"$f":"R95*B3","v":5018.2000000000007}]
[null,null,null,null,null,null,null,null,null,null,null,null,null,null,null,null,"20x16",11578,{"$f":"R96*B3","v":12735.800000000001}]
[null,null,null,null,null,null,null,null,null,null,null,null,null,null,null,null,"20x18",12780,{"$f":"R97*B3","v":14058.000000000002}]
["Head Channels",null,null,"Price",null,"Headers",null,null,"Price",null,"Heavy Duty Braces",null,null,null,null,null,"20x20",14358,{"$f":"R98*B3","v":15793.800000000001}]
["20'long",null,80,{"$f":"C99*B3","v":88},null,"10 to  12",null,250,{"$f":"H99*B3","v":275},null,null,null,null,"Price"]
["25' long",null,100,{"$f":"C100*B3","v":110.00000000000001},null,"15 to 20",null,500,{"$f":"H100*B3","v":550},null,"12' to 20'",null,50,{"$f":"M100*B3","v":55.000000000000007},null,null,"Overhead Doors",null,"NO GLASS","Price"]
["30' Long",null,120,{"$f":"C101*B3","v":132},null,"25 to 30",null,750,{"$f":"H101*B3","v":825.00000000000011},null,"22' to 24'",null,65,{"$f":"M101*B3","v":71.5},null,null,"10x10",null,1780,{"$f":"S101*B3","v":1958.0000000000002},"Insulated"]
["40' long",null,160,{"$f":"C102*B3","v":176},null,"35 to 40",null,1000,{"$f":"H102*B3","v":1100},null,"25' to 30'",null,75,{"$f":"M102*B3","v":82.5},null,null,"12x12",null,1815,{"$f":"S102*B3","v":1996.5000000000002},"NOT insulated"]
["45' long",null,180,{"$f":"C103*B3","v":198.00000000000003},null,"45 to 50",null,1250,{"$f":"H103*B3","v":1375},null,null,null,null,null,null,null,"14x12",null,2032,{"$f":"S103*B3","v":2235.2000000000003},"NOT insulated"]
["50' long",null,200,{"$f":"C104*B3","v":220.00000000000003},null,"55 to 60",null,1500,{"$f":"H104*B3","v":1650.0000000000002},null,"Braces standard",null,null,null,null,null,"16x8",null,1550,{"$f":"S104*B3","v":1705.0000000000002},"NOT insulated"]
[null,null,null,null,null,"65 to 70",null,1750,{"$f":"H105*B3","v":1925.0000000000002},null,"4'",null,25,{"$f":"M105*B3","v":27.500000000000004},null,null,"16x9",null,2050,{"$f":"S105*B3","v":2255},"NOT insulated"]
["Connection Fees",null,null,null,null,null,null,null,null,null,"7'",null,35,{"$f":"M106*B3","v":38.5},null,null,"16x10",null,2154,{"$f":"S106*B3","v":2369.4},"NOT insulated"]
["Side to Side",25,{"$f":"B107*B3","v":27.500000000000004},null,null,null,null,null,null,null,null,null,null,null,null,null,"16x12",null,2362,{"$f":"S107*B3","v":2598.2000000000003},"NOT insulated"]
["End to End",150,{"$f":"B108-B3","v":148.9}]
[]
[]
[]
[]
["Snow Load requirements"]
["30 PSF Vertical  12 gauge add 1 truss and 2 extra head channels"]
["40PSF 30\" apart, Extra Head Channel"]
["50PSF 18\" apart, Heavy Duty Braces, Extra Head Channels"]
["55-60PSF 16\" apart, Heavey duty Braces, Extra Head Channels"]
["80 or more PSF 16\" apart Heay Duty Braces, Extra Head Channels, Double Post System On Concrete."]
[null,null,null,"Price",null,null,null,null,null,null,"Price"]
["Framed Sines ",null,75,{"$f":"C120*B3","v":82.5},null,null,"Vents",null,"14\"x24\"",200,{"$f":"J120*B3","v":220.00000000000003}]
[]
["Panels",null,"Price",null,"Sky Lights",null,"Price",null,"Trims",null,null,"Price"]
["21'",95,{"$f":"B123*B3","v":104.50000000000001},null,"3x5",175,{"$f":"F123*B3","v":192.50000000000003},null,"Box Eave Trim 10'",null,35,{"$f":"K123*B3","v":38.5}]
["26'",120,{"$f":"B124*B3","v":132},null,"3x6",185,{"$f":"F124*B3","v":203.50000000000003},null,"Ridge Cap 10'",null,35,{"$f":"K124*B3","v":38.5}]
["31'",140,{"$f":"B125*B3","v":154},null,"3x7",195,{"$f":"F125*B3","v":214.50000000000003},null,"Corner Trim 10'",null,35,{"$f":"K125*B3","v":38.5}]
[null,null,null,null,"3x10",205,{"$f":"F126*B3","v":225.50000000000003},null,"Flashing  10'",null,35,{"$f":"K126*B3","v":38.5}]
[null,null,null,"PolyCarbonate","3x21",175,{"$f":"F127*B3","v":192.50000000000003},null,"Verticle Box Eave 10'",null,35,{"$f":"K127*B3","v":38.5}]
[null,null,null,null,null,null,null,null,"L Trim ",null,15,{"$f":"K128*B3","v":16.5}]
[null,null,null,null,null,null,null,null,"J Trim",null,15,{"$f":"K129*B3","v":16.5}]
["Square Tubing",null,"Price","Price per ft",null,"Panels  26 Gauge",null,"Price"]
["20' 12 gauge",140,{"$f":"B131*B3","v":154},"7.70 per foot",null,"21'",95,{"$f":"G131*B3","v":104.50000000000001}]
["20 14 Gauge",120,{"$f":"B132*B3","v":132},"6.60 per foot",null,"26'",120,{"$f":"G132*B3","v":132}]
[null,null,null,null,null,"31'",140,{"$f":"G133*B3","v":154}]

{"sheet":"OrderSheet","index":1,"n_rows":11,"n_cols":14,"rows_kept":11,"cut":false,"hidden":false,"merged":[]}
[]
["14 Gauge",null,null,null,null,null,null,null,null,null,null,null,null,"12 Gauge"]
[null,null,"20'",null,"25'",null,"30'",null,"25'",null,"40'"]
["12'",null,null,false,null,"`",null,false,null,false,null,false]
["18'",null,null,false,null,false,null,false,null,false,null,false]
["20'",null,null,false,null,false,null,false,null,false,null,false]
["22'",null,null,false,null,true,null,true,null,true,null,true]
["24'",null,null,false,null,false,null,false,null,false,null,false]
["26'",null,null,false,null,false,null,false,null,false,null,false]
["28'",null,null,false,null,false,null,false,null,false,null,false]
["30'",null,null,false,null,false,null,false,null,false,null,false]

{"sheet":"Insulation","index":2,"n_rows":19,"n_cols":8,"rows_kept":19,"cut":false,"hidden":false,"merged":[[12,3,12,4],[14,3,14,4],[16,3,16,4],[18,3,18,4],[0,0,1,6],[3,0,4,6]]}
["Insulation Price"]
[]
[null,"4' wide x 175' long or 700sqft",null,null,null,500,{"$f":"F3*MainPriceSheet!B3","v":550},"per roll"]
[]
[]
[null,"Rated @",null,"R15"]
[]
[null,22,null,25,null,9]
[null,"Width","x","Length","x","Height"]
[]
[]
[null,null,null,null,null,null,0.1]
["Roof",null,null,{"$f":"((B8+3)*D8)*2","v":1250},null,null,{"$f":"D13*1.1","v":1375}]
[]
["Sides (both sides)",null,null,{"$f":"((F8+2)*D8*2)*2","v":1100},null,null,{"$f":"D15*1.1","v":1210}]
[]
["Ends (Both Ends)",null,null,{"$f":"((F8+3)*B8*2)*2","v":1056},null,null,{"$f":"D17*1.1","v":1161.6000000000001}]
[]
["Fully insulated",null,null,{"$f":"D13+D15+D17","v":3406},null,null,{"$f":"D19*1.1","v":3746.6000000000004}]

{"sheet":"Estimate","index":3,"n_rows":57,"n_cols":28,"rows_kept":57,"cut":false,"hidden":false,"merged":[[3,0,3,4],[3,5,3,23],[3,24,3,29],[0,0,0,13],[0,14,0,29],[1,0,1,1],[2,1,2,12],[2,13,2,25],[2,26,2,29],[9,0,9,4],[9,9,9,11],[9,17,9,18],[10,0,11,2],[10,3,10,5],[10,6,10,9],[10,11,10,15],[10,17,10,18],[6,0,6,29],[7,0,7,29],[8,0,8,4],[8,5,9,6],[8,7,9,8],[8,9,8,11],[8,12,9,13],[8,14,9,16],[8,17,8,18],[8,19,24,28],[4,0,4,17],[4,18,4,20],[4,21,4,22],[4,23,4,29],[5,0,5,23],[5,24,5,29],[11,3,11,5],[11,6,11,9],[11,11,11,15],[11,17,11,18],[12,0,12,2],[12,3,12,5],[12,6,12,9],[12,11,12,15],[12,17,12,18],[18,17,18,18],[13,0,13,2],[13,3,13,16],[13,17,13,18],[14,0,14,2],[14,3,14,16],[14,17,14,18],[15,0,15,2],[15,3,15,16],[15,17,15,18],[21,3,21,16],[21,17,21,18],[16,0,16,2],[16,3,16,16],[16,17,16,18],[17,0,17,2],[17,3,17,16],[17,17,17,18],[18,0,18,2],[18,3,18,16],[24,0,24,2],[24,3,24,16],[24,17,24,18],[19,0,19,2],[19,3,19,16],[19,17,19,18],[20,0,20,2],[20,3,20,16],[20,17,20,18],[21,0,21,2],[22,0,22,2],[22,3,22,16],[22,17,22,18],[23,0,23,2],[23,3,23,16],[23,17,23,18],[25,20,25,21],[25,22,25,26],[25,27,25,28],[26,3,26,16],[26,17,26,18],[26,20,26,21],[26,22,26,26],[26,27,26,28],[35,0,35,4],[25,0,26,2],[25,3,25,5],[25,6,25,9],[25,11,25,15],[25,16,25,18],[43,0,43,14],[43,15,43,29],[27,0,27,7],[28,0,28,7],[29,0,29,7],[30,0,30,7],[31,0,31,7],[32,0,32,7],[33,0,33,7],[34,0,34,7],[53,0,54,27],[55,0,55,27],[56,0,56,27],[36,0,36,3],[37,0,37,1],[38,0,38,1],[39,0,39,1],[40,0,40,1],[41,0,41,1],[42,0,42,29],[49,0,50,14],[49,15,50,15],[49,16,50,27],[51,0,51,24],[51,25,51,27],[52,0,52,27]]}
["GALVANIZED STEEL\nFRAMING                        ANCHORS FOR GROUND INSTALLATION",null,null,null,null,null,null,null,null,null,null,null,null,null,"Pacific Metal Buildings Inc.\n270 Old Hwy 99 • PO Box 485 • Maxwell, CA 95955\nMain 530-438-2777 • Secondary 530-438-2877\nToll Free 1-877-604-2777 • Fax 530-438-2878\nInvoice #"]
[]
["Dealer","                       Norma/Jefferey Morse                       ",null,null,null,null,null,null,null,null,null,null,null,"Phone                                                                               Date"]
["Buyer Name(s)",null,null,null,null,null,null,null,null,null,null,null,null,null,null,null,null,null,null,null,null,null,null,null,"County"]
["Buyer Address                                                                                       City",null,null,null,null,null,null,null,null,null,null,null,null,null,null,null,null,null,null,null,null,"State",null,"         Zip"]
["Phone                                                                              (alternative)                                                          Email"]
["Site (unit location if different from above)                                                                                                                                                  "]
["Stora+e Buildin+                     Classical St/le                        Boxed %a)e St/e                     &ertical 9oof St/le                     Warehouse"]
["Description",null,null,null,null,"Width\n",null,"Roof Length\n",null,"Frame Length",null,null,"Leg Height\n",null,"Gauge\n",null,null,"Price",null,"ALL ORDERS\nC.O.D                            \nPrice:\nbe processed if the           Tax:             \nNote: Orders will not\ndealer collects more\nthan 10%, 12%, 15%        Labor:\nat sale price.\nPlans:\nTax Rate\n7.75       %     Equipment:\nTotal:     \n10%    \ndown payment before taxes\n$ \nBalance due at installation"]
[]
["Option",null,null,null,null,null,"Classical Style",null,null,null,null,"Boxed eave Style"]
[null,null,null,null,null,null,"Residential\nVertical Roof/Horizontal Sides",null,null,null,null,"All Vertical Roof/Sides"]
[null,null,null,null,null,null,"Leg Height",null,null,null,"Size"]
[]
[]
[]
[]
[]
[]
[]
[]
[]
[]
[]
[]
["Colors:",null,null,"Roof",null,null,"Sides",null,null,null,null,"Ends",null,null,null,null,"Trim",null,null,"Site Level","Yes       No",null,"Electricity          Yes",null,null,null,null,"No"]
[null,null,null,"Ridge Cap Color (Vertical Style Only)",null,null,null,null,null,null,null,null,null,null,null,null,null,"Installation",null,"Ground","Cement",null,"Other (specify)"]
[]
[]
[]
[]
[]
[]
[]
[]
[]
[]
[]
[]
[]
[]
[]
["1)     All sales are C.O.D. payment of balance in full due at time of installation.\n2)     The customer is responsible for informing the installers of any underground cables, gas lines, or any other utility lines.  We will not be responsible for any damages to un-locked utilities.\n3)     If there is a price discrepancy over $20.00, the company reserves the right to cancel the order.\n4)     All quoted prices include installation of level ground at ground level only.\n5)     It is the sole responsibility of the customer to check for permits or restrictions regarding installation of the product.  Some state and local ordinances may require a foundation prior to installation. A set of free generic engineer drawings can be provided with every standard size building with proper anchoring. These drawings are not guaranteed to work for all permit processes BUT, for an additional fee and upon request per your building department; you may purchase engineered specifications and Calculations.\n6)     It is highly recommended that all ground, gravel or blacktop installation be securely fastened with mobile home anchors. In the case of installation on concrete, it is highly recommended that concrete anchors are utilized. Pacific Metal Buildings Inc. will not be responsible for any damages to the structure if the customer chooses to use only the rebar anchors provided with the carport and failure to utilize the proper anchoring method will void your warranty. Please note that the customer is responsible for patching blacktop after anchors are installed.\n7)     Thewarrantywillbevoidiftheunitisinstalledbyanyoneotherthanourapprovedindependentcontractors. Warrantyisalsovoidifcustomertamperswithunitsuchasinstallingfans, drilling ontubing, etc.\n8)     Your lot must be level or the unit will be installed “AS IS” on the lot.  Additionally, it is the customer’s sole responsibility for insuring the installation area is adequately prepared/cleared for installation. Installers will need adequate space for the construction of your building. A minimum of 3’ft-4’ft clearance all around the building is required as well as clear space above the peak height. If, upon arrival, the installers find the lot in an unsuitable condition, a $350 Restocking fee will be added to the balance owed. INITIAL                     \n9)     The quoted price above does not include any extra tasks or requests by the customer.  Any such additional tasks or requests will require a separate quotation and approved by Pacific Metal Buildings Inc.\n10)  For ALL additions, a $150.00 return fee will be added to your balance.\n11)  Buildings over 13’ tall or buildings 30’ wide as tall as 12’ tall will require a lift onsite for installation. PMB inc., will bill for a lift onsite unless you can provide one. The lift must reach at least 20’ft+.\n12)   We highly recommend a Vertical Roof line on units over 30’ long to avoid leaks. Classical and Box Eave Styles ove 30’ long will not have any leak warranty. INITIAL                 \n13)  Limited Warranty.  Seller warrants for a period of twenty years from the date of completion of installation against rust through on the framing only assuming normal user care and maintenance on 12 gauge material only. This warranty does NOT apply to 14 gauge materials.\nBALANCES OWING:  All unpaid balances must be paid in full at the time of installation.   If balances due and owing are unpaid, Pacific Metal Buildings Inc. reserves the right to repossess the carport/garage and/ or charge a 10% per annum interest fee.   If you choose to cancel the installation of the structure, Pacific Metal Buildings Inc. is not responsible for returning your 10% down payment.  Upon cancellation, you will be required to get your 10% back from the Dealer you paid it to.\nALL SPECIAL ORDERS REQUIRE A NON-REFUNDABLE 60% DOWN PAYMENT PRIOR TO THE COMMENCEMENT OF ANY WORK, DESIGN, OR FABRICATION.\nThis is a contract.  By signing this, customer acknowledges and agrees with all of the above terms and the terms contained on the reverse side of this document.  This contract is NOT final until review/approval by Pacific Metal Buildings Inc.\nBalance to be paid in full at time of installation to Pacific Metal Buildings Inc. by Check, Money Order, Visa, Master Card or Discover Card."]
["CUSTOMER SIGNATURE                                                                                                   ",null,null,null,null,null,null,null,null,null,null,null,null,null,null,"DEALER SIGNATURE                                                                                                                                      "]
[]
[]
[]
[]
[]
["1.  Prices, Payment and Risk of Loss.\na.  Prices contained in Seller’s published price lists, if any, are subject to change without notice.  Prices in individual written quotations or proposals are firm only for a period of thirty (30) days from the date of the quotation after which Buyer should inquire of Seller as to their validity and request a written confirmation or revision. Prices do no include taxes and Buyer shall pay all applicable sales or other taxes levied with respect to Goods (and replacements) in the Agreement, unless exempt therefrom.  All prices are in United States dollars.  Buyer shall pay all government fees levied on the installation and inspection of the Goods.  Buyer shall pay upon receipt all invoices rendered by Seller for any such items Seller may pay and for the Goods.\nb.  This  Agreement  is  for  the  delivery  and  erection  of  fabricated  metal structures and the Goods shall be delivered F.O.B. the Buyer’s place of delivery.  Risk of loss passes to the Buyer upon tender of the Goods to the buyer.  Seller’s breach of the Agreement shall not affect the passing of the risk of loss to Buyer notwithstanding any provision of law to the contrary.\nc.  Seller  may  unilaterally  increase  prices  to  cover  increased  costs  (plus reasonable overhead and profit) of design, materials, and manufacturing required by changes requested by buyer after the date of any quotation.\nd.  All amounts not paid to Seller when due shall incur a carrying charge of 10% per annum to the extent allowed by law and otherwise at the highest written contract rate allowed by law.\ne.  All amounts due on installation or other event which requires the action or cooperation of Buyer which Buyer fails to supply timely shall become due upon such failure.\n2.  Delivery. Shipping and installation dates are estimated based on Seller’s present engineering and manufacturing capacity and scheduling, and may be revised by Seller upon receipt or scheduling of Buyer’s order.  All shipping dates are approximate and shall be computed from the date of entry of the order on Seller’s books. All shipping dates are further subject to seller’s prompt receipt from Buyer of written purchase order to acceptance, letter of credit, down payment, and other conditions as specified in the Agreement, and of all drawings, information and approvals necessary to provide the Goods and to grant any credit proposed in the Agreement.\n3.  Delay of Shipment or Performance Excused for Various Reason.\na.  If shipment of any item or other performance by Seller is delayed at the request or due to the fault of the Buyer, the seller may at its option hold the item at the place of manufacture at the risk and expense of the Buyer from the time it is ready for shipment.  In the event of any such delay in shipment, full and final payment for an item shall be due and payable thirty\n(30) days after the Buyer is notified     t the item is ready for shipment.  If the Seller is unwilling to accommodate the Buyer by holding such item, the Buyer shall accept shipment immediately.\nb.  Dates for Seller’s performance are estimates only.  In addition, the Seller shall not be in default because of its delay or failure to deliver or perform resulting, in whole or in part, from: (i) any foreign or domestic embargoes, seizures, acts of God, insurrections, war, or the adoption or enactment of any law, ordinance, regulation, ruling or order, or (ii) the lack of usual means  of  transportation, fires, floods, explosions, strikes, or  any  other accidents, contingencies, or events, at the Seller’s or its supplier’s plant or elsewhere (whether or not beyond the Seller’s control) which directly or indirectly interfere with, or render substantially more burdensome, Seller’s production, deliver, or performance.\n4.  Inspection Testing and Rejection.\na.  If  the  Agreement  expressly  provides  for  Buyer’s  inspection  and/or acceptance  of  the  Goods, Seller’s  standard  test  procedures  conducted by  Seller’s  representative  shall  be  the  criteria  for  inspection  and/or acceptance, unless other specific procedures have been specified in the Agreement.\nb.  All drawings, specifications, technical documentation, samples, prototypes and Goods shall be deemed approved and/or accepted by Buyer if Buyer does not provide a written objection and/or rejection with seven (7) days of receipt or their reasonable time established by Seller.  Any objection and/ or rejection by the Buyer must be in writing and state with specificity all defects and non-conformities upon which Buyer will rely to support its rejection.  ALL DEFECTS AND NON-CONFORMITIES WHICH ARE NOT SO SPECIFIED ARE WAVED.\n5.  Customer  Responsible  for  Locating  Underground  Utilities.    It  is  the  sole responsibility  of  the  customer  to  provide  the  factory  approved  independent contractor installers with the location of any underground cables, gas lines, or other utilities.  This may include contacting the utility company to request that the locations of underground utilities be marked.  Pacific Metal Building, Inc. is",null,null,null,null,null,null,null,null,null,null,null,null,null,null,null,"20 YEAR LIMITED WARRANTY\n1.  Limited Warranty.  Seller warrants for a period of twenty years from the date of completion of installation against rust through on the framing only assuming normal user care and maintenance on 12 gauge material only. This warranty does NOT apply to 14 gauge materials.\n2.  Warranty Disclaimer. THE WARRANTIES IN THIS AGREEMENT ARE IN LIEU OF ALL OTHER WARRANTIES EXPRESS OR IMPLIED, INCLUDING WITHOUT LIMITATION ANY  WARRANTIES  OR  MERCHANTABILITY  OR  FITNESS  FOR   A  PARTICULAR PURPOSE, WHICH ARE EXPRESSLY DISCLAIMED.\n3.  Remedy.   Buyer agrees that its sole and exclusive remedy against seller will be  limited  to  the  repair  and  replacement  of  non-conforming  goods  at  the warrantor’s option, provided seller is notified in writing of any defect.  However, warrantor will not elect refund unless it is unable to provide replacement, and repair is not commercially practicable and cannot be made within the time for performance.  This exclusive remedy will not be deemed to have failed of its essential purpose so long as seller is willing and able to repair or replace the defective parts and, in any event, seller’s liability for any damages due buyer will be limited to the purchase price of the goods. THIS PARAGRAPH STATES BUYER’S SOLE AND EXCLUSIVE REMEDY FOR BREACH OF WARRANTY.\n4.  Limitation on Liability.  THE MAXIMUM LIABILITY, IF ANY, OF SELLER FOR ALL DAMAGES AND DAMAGES FOR INJURIES TO PERSONS OR PROPERTY, WHETHER ARISING FROM SELLER’S BREACH OF THIS AGREEMENT, BREACH OF WARRANTY, NEGLIGENCE,  STRICT  LIABILITY,  OR  OTHER  TORT,  WITH  RESPECT  TO  THE GOODS, OR ANY SERVICES IN CONNECTION WITH THE GOODS, IS LIMITED TO ANY AMOUNT NOT TO EXCEED THE PURCHASE PRICE OF THE GOODS.  IN NO EVENT WILL SELLER BE LIABLE TO BUYER AND/OR ANY THIRD PARTIES FOR ANY INCIDENTAL DAMAGES, CONSEQUENTIAL DAMAGES, SPECIAL DAMAGES, EXEMPLARY DAMAGES OR LABOR CHARGES, INCLUDING WITHOUT LIMITATION LOST REVENUE AND PROFITS, EVEN IF IT HAS BEEN ADVISED OF THE POSSIBILITY OF SUCH DAMAGES.\nNOTE:\nSOME STATES DO NOT ALLOW THE EXCLUSION OR LIMITATION OF INCIDENTAL OR CONSEQUENTIAL DAMAGES, SO THE ABOVE LIMITATION OR EXCLUSION MAY NOT APPLY TO YOU.\n5.  Warranty Limited to Original Purchaser. This warranty extends only to the original purchaser of the product warranted by this document.  Said warranty does not extend to transferee owners of the product.\n6.  Exclusions and Limitations.  Pacific Metal Buildings Inc. does not warrant and products not installed and anchored by a factory approved installer utilizing a factory approved anchoring system. Installation by other than a factory approved installer utilizing a factory approved anchoring system will VOID your warranty. Damages from improper anchoring, strong winds, snow or ice are not considered defects.  Pacific Metal Buildings Inc. does not warrant any temporary anchoring systems (i.e. rebar) utilized by the customer, nor shall Pacific Metal Buildings Inc. be in any way responsible for damage caused by the use of such temporary anchoring systems.  Additionally, Pacific Metal Buildings Inc. does not warrant any damages caused to products resulting from movement of the structure from the original installation point.\n7.  Ceiling Fans Void Warranty.  The installation of a ceiling fan anywhere on the structure, not matter how it is installed VOIDS all warranties. The structure is not designed for them and they should not be used.\n8.  Modification of Structure Voids Warranty.  Any modification, addition, deletion, substitution, etc. to the structure without express written design approval by Pacific Metal Buildings Inc. will VOID the warranty.  Our products are designed and specifically engineered to provide superior performance as manufactured. Any changes to the design by the Buyer could compromise the structural integrity of the unit.\n9.  Claims Procedure.  Any claim under this warranty must be in writing and sent to Pacific Metal Buildings Inc., 270 Old Hwy 99, Maxwell, CA 95955 and be received within 30 days of discovering claimed defect.  This written notification must include a description of the defect, proof of purchase, and the address of the installed product.  As Pacific Metal Buildings Inc. must have a reasonable opportunity to inspect the claim, do not begin any repairs prior to said inspection or the terms of the warranty could be voided."]
[]
["PACIFIC METAL BUILDIGNS                                                                                                                                                           12/09/2019"]
["We would like to thank you for your recent metal building/carport purchase. We have listed a few key points to keep in mind prior to installation to make sure you are happy with your finished product."]
["1.Delivery time frames are consistently changing due to weather, holidays and workloads. Please keep in\nmind that the estimated time frames are subject to change, but we try our hardest to get you the most accurate schedule in a timely manner. If you are going through the permit process, your turn around time for installation DOES NOT begin until your permit is approved so please make sure you contact our office once your permit has been approved so that we may begin your turn around time for installation. Otherwise; we will only assume that you are still pending on permit approval therefore, delaying your installation dates.\n2.Confirming installation dates with scheduling department and canceling dates assigned will result in a\n$350 restocking fee.\n3.We will call you approximately 2-3days before installation to schedule your delivery date and approximate time. Saturdays and Sundays are not available for installation dates. If you desire a weekend installation a $200.00 minimum fee will be charged per day.\n4.Please keep in mind that your ground surface MUST BE LEVEL and CLEARED prior to installation. If you have an RV or any object and cannot remove them from area of installation, a build over fee will be applied. Slopes front to back and side to side effect proper installation of buildings. There will be a labor charge if any surface is unleveled and adjustments are done to buildings at time of installation. We do not do any ground/foundation work so if the job site is not suitable upon arrival, we will not install your unit and an automatic $350 restocking fee will also be added to your balance due.\n5.If there are any utility lines onsite, PMB Inc may contact US Locates prior to your installation. This is a free service that is offered by the City Utilities Departments. US locates will mark any local underground line, they do not detect any private lines. You will be responsible to hire someone local to mark those private lines. You are responsible to mark the job site in White paint/chalk. This must be done in white only.\n6.If you are going through the permit process, please let us know at the time of order. A set of free Generic Engineer Drawings can be provided with every standard size building/unit if proper anchoring system was purchased. These drawings are not guaranteed to work for all permit purposes in all city/county building departments. Upon request per your building department and for an additional fee, you may also order Engineered Specifications and or Calculations.\n7.Installers need adequate space on all 4 sides of your unit to build. A minimum of 3’-4’ clearance per side and per end as well as above the eave height clear space is required onsite. Please feel free to send us pictures of the area if you have any questions about whether the building will fit correctly in your space. Lack of required workspace will result in additional labor charge.\n8.Buildings that are 13’ tall OR Buildings 26’wide-30’wide as tall as 12’ will require a forklift onsite for installation. PMB Inc may bill you for a forklift onsite unless you can provide forklift onsite. That forklift must lift at least 21’\n9.Please double check all measurements prior to installation and make sure our order represents those measurements well taking in consideration 3’-4’clearance all around."]
[]
["By signing this form, I acknowledge all terms listed above."]
["X                                                                                     "]